[Event "*** SCC Grand Prix: Titled Tuesday Blitz"]
[Site "Chess.com"]
[Date "2020.08.25"]
[Round "5"]
[White "FearNoEvil12"]
[Black "BikingBrian"]
[Result "1/2-1/2"]
[WhiteElo "1972"]
[BlackElo "2268"]
[TimeControl "180+1"]
[EndTime "10:56:19 PDT"]
[Termination "Game drawn by agreement"]

1. e4 {[%clk 0:03:00.9]} 1... c5 {[%clk 0:02:59.7]} 2. Nc3 {[%clk 0:02:59.7]}
2... Nc6 {[%clk 0:02:59.4]} 3. f4 {[%clk 0:03:00.1]} 3... g6 {[%clk 0:02:59.9]}
4. Nf3 {[%clk 0:03:00.1]} 4... Bg7 {[%clk 0:03:00.3]} 5. Bc4 {[%clk 0:03:00.2]}
5... e6 {[%clk 0:02:59.7]} 6. f5 {[%clk 0:03:00.7]} 6... Nge7 {[%clk 0:02:58.9]}
7. fxg6 {[%clk 0:03:00.4]} 7... hxg6 {[%clk 0:02:54.1]} 8. d3 {[%clk 0:03:00.9]}
8... d5 {[%clk 0:02:51.7]} 9. Bb3 {[%clk 0:03:00]} 9... a6 {[%clk 0:02:36.8]}
10. a4 {[%clk 0:02:58]} 10... b6 {[%clk 0:02:32.1]} 11. O-O {[%clk 0:02:56.7]}
11... Qd6 {[%clk 0:02:20.2]} 12. g3 {[%clk 0:02:53.9]} 12... Bb7 {[%clk
0:02:02.1]} 13. Bf4 {[%clk 0:02:48.7]} 13... Qd7 {[%clk 0:02:00]} 14. Ng5 {[%clk
0:02:40.4]} 14... f6 {[%clk 0:01:49.4]} 15. Nf3 {[%clk 0:02:36]} 15... O-O-O
{[%clk 0:01:48.9]} 16. Qe2 {[%clk 0:02:13.5]} 16... Nd4 {[%clk 0:01:46.5]} 17.
Nxd4 {[%clk 0:02:11.4]} 17... cxd4 {[%clk 0:01:47.4]} 18. Nd1 {[%clk 0:02:08.1]}
18... e5 {[%clk 0:01:43.1]} 19. Bd2 {[%clk 0:02:06.2]} 19... Rh5 {[%clk
0:01:16.5]} 20. Nf2 {[%clk 0:02:02]} 20... Rdh8 {[%clk 0:01:15.1]} 21. h4 {[%clk
0:01:57]} 21... g5 {[%clk 0:01:13.5]} 22. hxg5 {[%clk 0:01:52.4]} 22... fxg5
{[%clk 0:01:09.7]} 23. g4 {[%clk 0:01:50.5]} 23... Rh4 {[%clk 0:01:07.7]} 24.
Qf3 {[%clk 0:01:48.7]} 24... Rf8 {[%clk 0:01:04]} 25. Qg3 {[%clk 0:01:36.4]}
25... Bf6 {[%clk 0:00:43.3]} 26. Kg2 {[%clk 0:01:27.7]} 26... Ng6 {[%clk
0:00:42.8]} 27. Rh1 {[%clk 0:01:25.7]} 27... Nf4+ {[%clk 0:00:41.7]} 28. Bxf4
{[%clk 0:01:22.3]} 28... exf4 {[%clk 0:00:41.5]} 29. Qf3 {[%clk 0:01:22.6]}
29... Rfh8 {[%clk 0:00:34.7]} 30. Rxh4 {[%clk 0:01:21]} 30... Rxh4 {[%clk
0:00:35.6]} 31. Rh1 {[%clk 0:01:19]} 31... Rxh1 {[%clk 0:00:34.5]} 32. Kxh1
{[%clk 0:01:18.6]} 32... Qh7+ {[%clk 0:00:33.9]} 33. Kg2 {[%clk 0:01:17.9]}
33... dxe4 {[%clk 0:00:32.4]} 34. Nxe4 {[%clk 0:01:16.5]} 34... Bxe4 {[%clk
0:00:31.7]} 35. dxe4 {[%clk 0:01:15.1]} 35... Be5 {[%clk 0:00:29.7]} 36. Be6+
{[%clk 0:01:13.4]} 36... Kb8 {[%clk 0:00:26.5]} 37. Bf5 {[%clk 0:01:13.9]} 37...
Qc7 {[%clk 0:00:25.1]} 38. Qd3 {[%clk 0:01:10.9]} 38... Ka7 {[%clk 0:00:25]} 39.
b4 {[%clk 0:01:07.7]} 39... Qd6 {[%clk 0:00:23.8]} 40. Qc4 {[%clk 0:01:05.4]}
40... Qc7 {[%clk 0:00:20.4]} 41. Qxc7+ {[%clk 0:01:03.9]} 41... Bxc7 {[%clk
0:00:21.3]} 1/2-1/2

[Event "*** SCC Grand Prix: Titled Tuesday Blitz"]
[Site "Chess.com"]
[Date "2020.08.25"]
[Round "5"]
[White "GM_dmitrij"]
[Black "wannabe2700"]
[Result "1-0"]
[WhiteElo "2884"]
[BlackElo "2635"]
[TimeControl "180+1"]
[EndTime "10:56:20 PDT"]
[Termination "GM_dmitrij won by resignation"]

1. e4 {[%clk 0:03:00.9]} 1... c6 {[%clk 0:02:57.9]} 2. d4 {[%clk 0:02:59.5]}
2... d5 {[%clk 0:02:58.1]} 3. e5 {[%clk 0:03:00.1]} 3... Bf5 {[%clk 0:02:58.1]}
4. h4 {[%clk 0:03:00.4]} 4... h5 {[%clk 0:02:57.6]} 5. Bd3 {[%clk 0:03:00.2]}
5... Bxd3 {[%clk 0:02:57.4]} 6. Qxd3 {[%clk 0:03:01.1]} 6... Qa5+ {[%clk
0:02:56.3]} 7. Nd2 {[%clk 0:03:00.1]} 7... e6 {[%clk 0:02:48.8]} 8. Nf3 {[%clk
0:02:56.6]} 8... Qa6 {[%clk 0:02:46.1]} 9. c4 {[%clk 0:02:56.2]} 9... c5 {[%clk
0:02:46.5]} 10. O-O {[%clk 0:02:42.4]} 10... Nc6 {[%clk 0:02:45.6]} 11. Qb3
{[%clk 0:02:14.1]} 11... dxc4 {[%clk 0:02:37.3]} 12. Nxc4 {[%clk 0:02:15]} 12...
cxd4 {[%clk 0:02:35.3]} 13. Bg5 {[%clk 0:02:14.1]} 13... Nh6 {[%clk 0:02:33.3]}
14. Nfd2 {[%clk 0:01:58.1]} 14... b5 {[%clk 0:02:20.5]} 15. Nd6+ {[%clk
0:01:45.1]} 15... Bxd6 {[%clk 0:02:20.5]} 16. exd6 {[%clk 0:01:46]} 16... Nf5
{[%clk 0:02:17.2]} 17. d7+ {[%clk 0:01:44.4]} 17... Kxd7 {[%clk 0:02:16.6]} 18.
Ne4 {[%clk 0:01:45.3]} 18... Ke8 {[%clk 0:02:12.7]} 19. Rfc1 {[%clk 0:01:39.6]}
19... Kf8 {[%clk 0:02:07.3]} 20. a4 {[%clk 0:01:38.4]} 20... b4 {[%clk
0:01:52.8]} 21. Nc5 {[%clk 0:01:38.6]} 21... Qc8 {[%clk 0:01:52.8]} 22. Qf3
{[%clk 0:01:23.3]} 22... Kg8 {[%clk 0:01:25.4]} 23. Nd3 {[%clk 0:01:19.7]} 23...
f6 {[%clk 0:01:09.7]} 24. Rxc6 {[%clk 0:01:18.3]} 24... Qb7 {[%clk 0:01:03.4]}
25. Nc5 {[%clk 0:01:17.3]} 25... Qf7 {[%clk 0:00:59.3]} 26. Rxe6 {[%clk
0:01:15.7]} 26... Rc8 {[%clk 0:00:35.7]} 27. Qxf5 {[%clk 0:01:13.6]} 27... Rxc5
{[%clk 0:00:22.3]} 28. Qxc5 {[%clk 0:01:09.9]} 28... Qxe6 {[%clk 0:00:22.6]} 29.
Bd2 {[%clk 0:01:08.8]} 29... Qe2 {[%clk 0:00:18.8]} 30. Qxd4 {[%clk 0:01:07.2]}
30... Kh7 {[%clk 0:00:16]} 31. Re1 {[%clk 0:01:05.9]} 31... Qa6 {[%clk 0:00:13]}
32. Qe4+ {[%clk 0:01:02.9]} 32... g6 {[%clk 0:00:12.4]} 33. Qe7+ {[%clk
0:01:02.3]} 1-0

[Event "*** SCC Grand Prix: Titled Tuesday Blitz"]
[Site "Chess.com"]
[Date "2020.08.25"]
[Round "5"]
[White "Vuk2000"]
[Black "hansen"]
[Result "0-1"]
[WhiteElo "2731"]
[BlackElo "2947"]
[TimeControl "180+1"]
[EndTime "10:56:22 PDT"]
[Termination "hansen won by resignation"]

1. d4 {[%clk 0:02:44.5]} 1... Nf6 {[%clk 0:02:59.9]} 2. Bg5 {[%clk 0:02:43.8]}
2... d5 {[%clk 0:02:59.9]} 3. Bxf6 {[%clk 0:02:43.7]} 3... exf6 {[%clk
0:03:00.8]} 4. e3 {[%clk 0:02:44.1]} 4... Bd6 {[%clk 0:03:00.9]} 5. c4 {[%clk
0:02:44.1]} 5... dxc4 {[%clk 0:03:01]} 6. Bxc4 {[%clk 0:02:45]} 6... f5 {[%clk
0:03:01.4]} 7. Nc3 {[%clk 0:02:44.9]} 7... Nd7 {[%clk 0:03:01.1]} 8. Nf3 {[%clk
0:02:45.2]} 8... a6 {[%clk 0:03:00.6]} 9. O-O {[%clk 0:02:44.9]} 9... O-O {[%clk
0:02:59.8]} 10. Qc2 {[%clk 0:02:40.2]} 10... g6 {[%clk 0:02:58.3]} 11. Rfd1
{[%clk 0:02:20.5]} 11... Nf6 {[%clk 0:02:56.6]} 12. Rac1 {[%clk 0:02:18.7]}
12... c6 {[%clk 0:02:53.4]} 13. a3 {[%clk 0:02:12.6]} 13... Qe7 {[%clk
0:02:52.9]} 14. g3 {[%clk 0:02:09.7]} 14... Kg7 {[%clk 0:02:50.1]} 15. Bf1
{[%clk 0:02:02.8]} 15... Re8 {[%clk 0:02:47.8]} 16. Nd2 {[%clk 0:02:02.1]} 16...
h5 {[%clk 0:02:41.3]} 17. Na4 {[%clk 0:01:59.7]} 17... Be6 {[%clk 0:02:33.2]}
18. Nc5 {[%clk 0:01:53.3]} 18... h4 {[%clk 0:02:33.7]} 19. Nxe6+ {[%clk
0:01:51.9]} 19... Qxe6 {[%clk 0:02:33.9]} 20. Bg2 {[%clk 0:01:45]} 20... hxg3
{[%clk 0:02:33.4]} 21. hxg3 {[%clk 0:01:45.9]} 21... Bxg3 {[%clk 0:02:33.1]} 22.
fxg3 {[%clk 0:01:42.6]} 22... Qxe3+ {[%clk 0:02:33.1]} 23. Kf1 {[%clk
0:01:41.7]} 23... Qxg3 {[%clk 0:02:16.7]} 24. Nc4 {[%clk 0:01:24.4]} 24... Ng4
{[%clk 0:02:08.3]} 25. Rd3 {[%clk 0:00:42.1]} 25... Qf4+ {[%clk 0:02:08.2]} 26.
Kg1 {[%clk 0:00:42.2]} 26... Re2 {[%clk 0:02:07.9]} 27. Qxe2 {[%clk 0:00:39.3]}
27... Qxc1+ {[%clk 0:02:07.1]} 28. Rd1 {[%clk 0:00:39.4]} 28... Qf4 {[%clk
0:02:05.8]} 29. Bf3 {[%clk 0:00:30.6]} 29... Re8 {[%clk 0:01:58.6]} 30. Qg2
{[%clk 0:00:14.3]} 30... Ne3 {[%clk 0:01:57.7]} 31. Nxe3 {[%clk 0:00:14.2]}
31... Rxe3 {[%clk 0:01:58.6]} 32. Rf1 {[%clk 0:00:14.4]} 32... Qxd4 {[%clk
0:01:58.7]} 33. Qf2 {[%clk 0:00:15]} 33... Qe5 {[%clk 0:01:56.7]} 34. Rd1 {[%clk
0:00:12.2]} 34... Rb3 {[%clk 0:01:44.7]} 35. Rd2 {[%clk 0:00:11.7]} 35... Qf4
{[%clk 0:01:44.9]} 36. Bg2 {[%clk 0:00:11.2]} 36... Qe5 {[%clk 0:01:39.5]} 37.
Qe2 {[%clk 0:00:10.8]} 37... Re3 {[%clk 0:01:31.3]} 38. Qf2 {[%clk 0:00:10.8]}
38... g5 {[%clk 0:01:26.3]} 39. Qf1 {[%clk 0:00:07.5]} 39... Re1 {[%clk
0:01:15.4]} 0-1

[Event "*** SCC Grand Prix: Titled Tuesday Blitz"]
[Site "Chess.com"]
[Date "2020.08.25"]
[Round "5"]
[White "Maksimus1998"]
[Black "Playgood28"]
[Result "1/2-1/2"]
[WhiteElo "2596"]
[BlackElo "2348"]
[TimeControl "180+1"]
[EndTime "10:56:22 PDT"]
[Termination "Game drawn by repetition"]

1. e4 {[%clk 0:03:00.9]} 1... e5 {[%clk 0:02:59.2]} 2. Nf3 {[%clk 0:03:01.1]}
2... d6 {[%clk 0:02:59.1]} 3. d4 {[%clk 0:02:58.9]} 3... exd4 {[%clk 0:03:00]}
4. Nxd4 {[%clk 0:02:59.5]} 4... Nf6 {[%clk 0:02:59.9]} 5. Nc3 {[%clk 0:02:58.9]}
5... Be7 {[%clk 0:03:00.3]} 6. Bc4 {[%clk 0:02:53.8]} 6... O-O {[%clk
0:02:59.4]} 7. O-O {[%clk 0:02:53.4]} 7... Nxe4 {[%clk 0:02:59.3]} 8. Nxe4
{[%clk 0:02:49.5]} 8... d5 {[%clk 0:02:59.1]} 9. Bd3 {[%clk 0:02:49.9]} 9...
dxe4 {[%clk 0:02:59.1]} 10. Bxe4 {[%clk 0:02:50.8]} 10... Re8 {[%clk 0:02:59.1]}
11. Re1 {[%clk 0:02:49]} 11... Bf6 {[%clk 0:02:58.4]} 12. c3 {[%clk 0:02:19.1]}
12... c5 {[%clk 0:02:57.3]} 13. Nb5 {[%clk 0:02:19.1]} 13... Qxd1 {[%clk
0:02:54.3]} 14. Rxd1 {[%clk 0:02:20]} 14... Rxe4 {[%clk 0:02:53.3]} 15. Nc7
{[%clk 0:02:20.6]} 15... Na6 {[%clk 0:02:52.3]} 16. Nxa8 {[%clk 0:02:20.2]}
16... Bf5 {[%clk 0:02:51.8]} 17. Be3 {[%clk 0:02:10.6]} 17... Re8 {[%clk
0:02:49.3]} 18. Nc7 {[%clk 0:02:02.2]} 18... Nxc7 {[%clk 0:02:48.4]} 19. Bxc5
{[%clk 0:02:02.8]} 19... b6 {[%clk 0:02:45.6]} 20. Bd4 {[%clk 0:01:57.6]} 20...
Bxd4 {[%clk 0:02:37.1]} 21. Rxd4 {[%clk 0:01:58.5]} 21... Be6 {[%clk 0:02:33.6]}
22. c4 {[%clk 0:01:45.9]} 22... Kf8 {[%clk 0:02:30.2]} 23. Kf1 {[%clk
0:01:45.4]} 23... Ke7 {[%clk 0:02:28.1]} 24. b3 {[%clk 0:01:44.9]} 24... Rd8
{[%clk 0:02:27.5]} 25. Rxd8 {[%clk 0:01:44.5]} 25... Kxd8 {[%clk 0:02:27.3]} 26.
Ke2 {[%clk 0:01:45.2]} 26... Ke7 {[%clk 0:02:25.4]} 27. Ke3 {[%clk 0:01:44.7]}
27... h6 {[%clk 0:02:21.9]} 28. Kd4 {[%clk 0:01:37.6]} 28... Kd6 {[%clk
0:02:20.7]} 29. b4 {[%clk 0:01:34.4]} 29... a5 {[%clk 0:02:11]} 30. bxa5 {[%clk
0:01:31.3]} 30... bxa5 {[%clk 0:02:10.1]} 31. Rb1 {[%clk 0:01:31]} 31... Kc6
{[%clk 0:02:02]} 32. Rb8 {[%clk 0:01:29.2]} 32... h5 {[%clk 0:02:00.2]} 33. h4
{[%clk 0:01:28.4]} 33... g6 {[%clk 0:01:59.9]} 34. g3 {[%clk 0:01:28.3]} 34...
Bf5 {[%clk 0:01:47.6]} 35. Kc3 {[%clk 0:00:59.9]} 35... Be6 {[%clk 0:01:43.7]}
36. Kb3 {[%clk 0:00:44.3]} 36... Na6 {[%clk 0:01:39.6]} 37. Ra8 {[%clk
0:00:42.9]} 37... Kb7 {[%clk 0:01:37.5]} 38. Re8 {[%clk 0:00:42.2]} 38... Nc5+
{[%clk 0:01:36.7]} 39. Kc3 {[%clk 0:00:42.2]} 39... Ne4+ {[%clk 0:01:34]} 40.
Kd4 {[%clk 0:00:42.6]} 40... Nxf2 {[%clk 0:01:33.8]} 41. Re7+ {[%clk 0:00:41.4]}
41... Kc6 {[%clk 0:01:31.7]} 42. c5 {[%clk 0:00:39.8]} 42... Ng4 {[%clk
0:01:27.9]} 43. Ra7 {[%clk 0:00:39.2]} 43... Kb5 {[%clk 0:01:25.7]} 44. Rb7+
{[%clk 0:00:38.7]} 44... Kc6 {[%clk 0:01:23.2]} 45. Ra7 {[%clk 0:00:38.5]} 45...
Kb5 {[%clk 0:01:13.7]} 46. Rb7+ {[%clk 0:00:34.9]} 46... Kc6 {[%clk 0:01:13.4]}
47. Ra7 {[%clk 0:00:34.8]} 1/2-1/2

[Event "*** SCC Grand Prix: Titled Tuesday Blitz"]
[Site "Chess.com"]
[Date "2020.08.25"]
[Round "5"]
[White "Miss_JJ20"]
[Black "bocah_sakit"]
[Result "0-1"]
[WhiteElo "2412"]
[BlackElo "2622"]
[TimeControl "180+1"]
[EndTime "10:56:28 PDT"]
[Termination "bocah_sakit won by resignation"]

1. d4 {[%clk 0:02:56.3]} 1... Nf6 {[%clk 0:02:44.3]} 2. c4 {[%clk 0:02:55.7]}
2... g6 {[%clk 0:02:43.1]} 3. g3 {[%clk 0:02:56.1]} 3... Bg7 {[%clk 0:02:44]} 4.
Bg2 {[%clk 0:02:56.7]} 4... O-O {[%clk 0:02:44.1]} 5. Nc3 {[%clk 0:02:57.1]}
5... d6 {[%clk 0:02:45]} 6. Nf3 {[%clk 0:02:57.6]} 6... Nc6 {[%clk 0:02:45.3]}
7. O-O {[%clk 0:02:57.2]} 7... e5 {[%clk 0:02:45.7]} 8. dxe5 {[%clk 0:02:58.1]}
8... dxe5 {[%clk 0:02:46.6]} 9. Bg5 {[%clk 0:02:57.1]} 9... Be6 {[%clk
0:02:46.4]} 10. Qa4 {[%clk 0:02:55.2]} 10... Qc8 {[%clk 0:02:44.6]} 11. Rfd1
{[%clk 0:02:35.8]} 11... Nd7 {[%clk 0:02:42.9]} 12. Nd5 {[%clk 0:02:26.9]} 12...
Re8 {[%clk 0:02:39.6]} 13. e4 {[%clk 0:02:19.6]} 13... Bg4 {[%clk 0:02:22.2]}
14. Qa3 {[%clk 0:01:44.3]} 14... h6 {[%clk 0:02:03.3]} 15. Be3 {[%clk
0:01:37.3]} 15... Nb6 {[%clk 0:01:56.5]} 16. Rac1 {[%clk 0:01:32.9]} 16... Kh8
{[%clk 0:01:32.6]} 17. b4 {[%clk 0:01:26.9]} 17... Nd4 {[%clk 0:01:28.2]} 18.
Bxd4 {[%clk 0:01:15.3]} 18... exd4 {[%clk 0:01:27.1]} 19. Re1 {[%clk 0:01:03.5]}
19... c6 {[%clk 0:01:26.2]} 20. Nf4 {[%clk 0:00:53]} 20... Kh7 {[%clk
0:01:18.5]} 21. h3 {[%clk 0:00:46.5]} 21... Bd7 {[%clk 0:01:14.6]} 22. h4 {[%clk
0:00:46.1]} 22... Bg4 {[%clk 0:01:13.2]} 23. c5 {[%clk 0:00:41.3]} 23... Nd7
{[%clk 0:01:12.7]} 24. Qd3 {[%clk 0:00:39]} 24... Bxf3 {[%clk 0:01:09.6]} 25.
Qxf3 {[%clk 0:00:38.3]} 25... Ne5 {[%clk 0:01:09.6]} 26. Qd1 {[%clk 0:00:37.3]}
26... Qc7 {[%clk 0:01:04.9]} 27. Nd3 {[%clk 0:00:35.9]} 27... a5 {[%clk
0:01:05.1]} 28. a3 {[%clk 0:00:35.8]} 28... axb4 {[%clk 0:01:05]} 29. axb4
{[%clk 0:00:36.7]} 29... Ra3 {[%clk 0:01:02.3]} 30. Nxe5 {[%clk 0:00:35.7]}
30... Bxe5 {[%clk 0:01:01.6]} 31. Ra1 {[%clk 0:00:19]} 31... Rea8 {[%clk
0:00:59.3]} 32. Rxa3 {[%clk 0:00:18.6]} 32... Rxa3 {[%clk 0:01:00.2]} 33. Re2
{[%clk 0:00:13.5]} 33... d3 {[%clk 0:00:59.9]} 34. Rd2 {[%clk 0:00:13.4]} 34...
Ra1 {[%clk 0:00:59.9]} 0-1

[Event "*** SCC Grand Prix: Titled Tuesday Blitz"]
[Site "Chess.com"]
[Date "2020.08.25"]
[Round "5"]
[White "WiktoriaPOL"]
[Black "annamaja"]
[Result "1-0"]
[WhiteElo "1927"]
[BlackElo "2252"]
[TimeControl "180+1"]
[EndTime "10:56:28 PDT"]
[Termination "WiktoriaPOL won on time"]

1. c4 {[%clk 0:03:00.9]} 1... e5 {[%clk 0:02:59.1]} 2. Nc3 {[%clk 0:03:00.5]}
2... Nf6 {[%clk 0:02:57.7]} 3. Nf3 {[%clk 0:02:59.7]} 3... Nc6 {[%clk
0:02:56.9]} 4. e4 {[%clk 0:02:59.2]} 4... d6 {[%clk 0:02:50.5]} 5. d4 {[%clk
0:02:58.5]} 5... Bg4 {[%clk 0:02:44.8]} 6. d5 {[%clk 0:02:54.9]} 6... Nd4 {[%clk
0:02:44.4]} 7. Be2 {[%clk 0:02:52.8]} 7... Bxf3 {[%clk 0:02:35.1]} 8. Bxf3
{[%clk 0:02:51.7]} 8... Be7 {[%clk 0:02:35.2]} 9. Be3 {[%clk 0:02:50.8]} 9... c5
{[%clk 0:02:25]} 10. dxc6 {[%clk 0:02:49.4]} 10... Nxc6 {[%clk 0:02:24.8]} 11.
Nd5 {[%clk 0:02:47.4]} 11... O-O {[%clk 0:02:24]} 12. O-O {[%clk 0:02:44.8]}
12... Rc8 {[%clk 0:02:22.8]} 13. Rc1 {[%clk 0:02:32.6]} 13... Nd7 {[%clk
0:01:55.6]} 14. Qd2 {[%clk 0:02:27.6]} 14... f5 {[%clk 0:01:49.5]} 15. exf5
{[%clk 0:02:25.9]} 15... Rxf5 {[%clk 0:01:50.4]} 16. Bg4 {[%clk 0:02:25.2]}
16... Rf8 {[%clk 0:01:46.2]} 17. Nxe7+ {[%clk 0:02:06.9]} 17... Qxe7 {[%clk
0:01:43]} 18. Rfd1 {[%clk 0:01:53]} 18... Nd4 {[%clk 0:01:05.5]} 19. Bxd4 {[%clk
0:01:49.8]} 19... exd4 {[%clk 0:01:05.1]} 20. Qxd4 {[%clk 0:01:45.8]} 20... Rf6
{[%clk 0:01:02.9]} 21. Qd5+ {[%clk 0:01:35.2]} 21... Kh8 {[%clk 0:01:02]} 22.
Qxb7 {[%clk 0:01:33.5]} 22... Rd8 {[%clk 0:00:51.8]} 23. c5 {[%clk 0:01:31.1]}
23... h5 {[%clk 0:00:28.9]} 24. Bh3 {[%clk 0:01:23.7]} 24... Qf7 {[%clk
0:00:14.9]} 25. c6 {[%clk 0:01:18.9]} 25... Rxf2 {[%clk 0:00:06.1]} 26. c7
{[%clk 0:01:15]} 26... Rf8 {[%clk 0:00:04.7]} 27. c8=Q {[%clk 0:01:07.4]} 27...
Rxc8 {[%clk 0:00:03.7]} 28. Qxc8+ {[%clk 0:01:06.3]} 28... Kh7 {[%clk
0:00:03.2]} 29. Qxd7 {[%clk 0:01:06.1]} 29... Qf4 {[%clk 0:00:02.3]} 30. Qxd6
{[%clk 0:01:03.5]} 30... Qe3 {[%clk 0:00:01.3]} 31. Qd3+ {[%clk 0:01:00.6]} 1-0

[Event "*** SCC Grand Prix: Titled Tuesday Blitz"]
[Site "Chess.com"]
[Date "2020.08.25"]
[Round "5"]
[White "elcandado"]
[Black "Skatchkov_V"]
[Result "0-1"]
[WhiteElo "2510"]
[BlackElo "2683"]
[TimeControl "180+1"]
[EndTime "10:56:31 PDT"]
[Termination "Skatchkov_V won by resignation"]

1. d4 {[%clk 0:03:00.9]} 1... Nf6 {[%clk 0:02:58.8]} 2. Bf4 {[%clk 0:03:00.5]}
2... e6 {[%clk 0:02:58.9]} 3. e3 {[%clk 0:03:00.3]} 3... d5 {[%clk 0:02:59.3]}
4. Nd2 {[%clk 0:02:59.8]} 4... Be7 {[%clk 0:02:55.9]} 5. Bd3 {[%clk 0:02:58.9]}
5... O-O {[%clk 0:02:54.4]} 6. Ngf3 {[%clk 0:02:58.4]} 6... Nh5 {[%clk
0:02:47.7]} 7. Bg3 {[%clk 0:02:42.7]} 7... f5 {[%clk 0:02:47.4]} 8. Ne5 {[%clk
0:02:39]} 8... Nf6 {[%clk 0:02:45.8]} 9. Qf3 {[%clk 0:02:23.3]} 9... Nbd7 {[%clk
0:02:38.9]} 10. Nxd7 {[%clk 0:02:22]} 10... Bxd7 {[%clk 0:02:31.2]} 11. Be5
{[%clk 0:02:21.4]} 11... c5 {[%clk 0:02:28]} 12. c3 {[%clk 0:02:20.7]} 12... Ng4
{[%clk 0:02:14.9]} 13. Bf4 {[%clk 0:02:15.6]} 13... Qb6 {[%clk 0:02:08.5]} 14.
Rb1 {[%clk 0:02:13.5]} 14... c4 {[%clk 0:01:56.2]} 15. Bc2 {[%clk 0:02:11.6]}
15... Qa5 {[%clk 0:01:55.9]} 16. h3 {[%clk 0:02:03]} 16... Nf6 {[%clk
0:01:52.8]} 17. g4 {[%clk 0:02:02.5]} 17... Qxa2 {[%clk 0:01:46]} 18. gxf5
{[%clk 0:01:56.5]} 18... exf5 {[%clk 0:01:45.7]} 19. Rg1 {[%clk 0:01:55.8]}
19... Ne4 {[%clk 0:01:42.6]} 20. Be5 {[%clk 0:01:46.7]} 20... Rf7 {[%clk
0:01:39.8]} 21. Qg2 {[%clk 0:01:41.6]} 21... g6 {[%clk 0:01:38.8]} 22. f3 {[%clk
0:01:10.3]} 22... Nxc3 {[%clk 0:01:37.6]} 23. bxc3 {[%clk 0:01:05.3]} 23... Qxc2
{[%clk 0:01:37.3]} 24. Rxb7 {[%clk 0:01:04.8]} 24... Bh4+ {[%clk 0:01:30.8]} 25.
Bg3 {[%clk 0:00:57.8]} 25... Bxg3+ {[%clk 0:01:27.6]} 26. Qxg3 {[%clk
0:00:57.7]} 26... Qxc3 {[%clk 0:01:28.5]} 27. Qe5 {[%clk 0:00:14.3]} 27... Re8
{[%clk 0:01:27.3]} 28. Qxd5 {[%clk 0:00:13.8]} 28... Rxe3+ {[%clk 0:01:09.1]}
29. Kf1 {[%clk 0:00:11.1]} 29... Qxd2 {[%clk 0:01:00.9]} 0-1

[Event "*** SCC Grand Prix: Titled Tuesday Blitz"]
[Site "Chess.com"]
[Date "2020.08.25"]
[Round "5"]
[White "politeplayer"]
[Black "dpopadic"]
[Result "0-1"]
[WhiteElo "2202"]
[BlackElo "2361"]
[TimeControl "180+1"]
[EndTime "10:56:32 PDT"]
[Termination "dpopadic won by resignation"]

1. e4 {[%clk 0:03:00.9]} 1... c5 {[%clk 0:02:59.6]} 2. Nf3 {[%clk 0:03:01.2]}
2... Nc6 {[%clk 0:02:59.7]} 3. d4 {[%clk 0:03:01.6]} 3... cxd4 {[%clk
0:02:59.8]} 4. Nxd4 {[%clk 0:03:02.1]} 4... Nf6 {[%clk 0:03:00.4]} 5. Nc3 {[%clk
0:03:02.6]} 5... e5 {[%clk 0:03:00.6]} 6. Ndb5 {[%clk 0:03:02.5]} 6... d6 {[%clk
0:03:00.8]} 7. Bg5 {[%clk 0:03:01.2]} 7... a6 {[%clk 0:03:00.9]} 8. Na3 {[%clk
0:03:01.5]} 8... b5 {[%clk 0:03:01.1]} 9. Bxf6 {[%clk 0:03:02]} 9... gxf6 {[%clk
0:03:00.6]} 10. Nd5 {[%clk 0:03:02.4]} 10... Bg7 {[%clk 0:03:00.8]} 11. Bd3
{[%clk 0:03:01.4]} 11... Ne7 {[%clk 0:02:59.5]} 12. Nxe7 {[%clk 0:02:59]} 12...
Qxe7 {[%clk 0:02:59.5]} 13. c4 {[%clk 0:02:56.7]} 13... f5 {[%clk 0:02:59.2]}
14. cxb5 {[%clk 0:02:54.3]} 14... O-O {[%clk 0:02:57.9]} 15. b6 {[%clk
0:02:28.7]} 15... d5 {[%clk 0:02:56.2]} 16. exd5 {[%clk 0:02:22.3]} 16... e4
{[%clk 0:02:55.8]} 17. Be2 {[%clk 0:02:15.8]} 17... Bxb2 {[%clk 0:02:53.1]} 18.
Nc2 {[%clk 0:02:15]} 18... Bc3+ {[%clk 0:02:47.4]} 19. Kf1 {[%clk 0:02:08.7]}
19... Bxa1 {[%clk 0:02:47.4]} 20. Qxa1 {[%clk 0:02:08]} 20... Rb8 {[%clk
0:02:45.2]} 21. Qd4 {[%clk 0:01:57.9]} 21... Qd6 {[%clk 0:02:44.3]} 22. g4
{[%clk 0:01:31.2]} 22... fxg4 {[%clk 0:02:31.9]} 23. Ne3 {[%clk 0:01:22.9]}
23... f5 {[%clk 0:02:28.2]} 24. h3 {[%clk 0:01:17.7]} 24... Rxb6 {[%clk
0:02:09.9]} 25. hxg4 {[%clk 0:01:03.5]} 25... Rb1+ {[%clk 0:02:08.9]} 26. Bd1
{[%clk 0:00:56.6]} 26... Qf6 {[%clk 0:01:56.3]} 27. Qxf6 {[%clk 0:00:34]} 27...
Rxf6 {[%clk 0:01:55.6]} 28. gxf5 {[%clk 0:00:29.7]} 28... Bxf5 {[%clk
0:01:52.7]} 29. d6 {[%clk 0:00:20.2]} 29... Rxd6 {[%clk 0:01:48.2]} 30. Kg2
{[%clk 0:00:17.4]} 30... Be6 {[%clk 0:01:38.8]} 31. Rh4 {[%clk 0:00:08.5]} 31...
Rbxd1 {[%clk 0:01:34]} 32. Nxd1 {[%clk 0:00:08.3]} 32... Rxd1 {[%clk 0:01:33.6]}
33. Rh6 {[%clk 0:00:04.6]} 33... Rd6 {[%clk 0:01:28.6]} 34. Kg3 {[%clk
0:00:04.8]} 34... Kg7 {[%clk 0:01:26]} 35. Rh4 {[%clk 0:00:04.6]} 35... Bf5
{[%clk 0:01:21.5]} 36. Kf4 {[%clk 0:00:04.5]} 36... Bg6 {[%clk 0:01:21.6]} 37.
Ke5 {[%clk 0:00:04.3]} 37... Rd2 {[%clk 0:01:21.5]} 38. Rf4 {[%clk 0:00:03.1]}
38... Rxa2 {[%clk 0:01:20.7]} 39. f3 {[%clk 0:00:01.8]} 39... e3 {[%clk
0:01:17.9]} 0-1